fUSD/lending_fUSD_20260106
["ID","MTS","AMOUNT","RATE_DAILY","PERIOD"]
[400571157,1767727849931,-576.132778,0.00037,31]
[400571158,1767727849940,-576.132778,0.00037,31]
[400571159,1767727849949,-576.132778,0.00037,31]
[400571160,1767727849958,-576.132776,0.00037,31]
[400571161,1767727849968,-191.195533,0.00037,31]
[400571162,1767727849978,-191.195533,0.00037,31]
[400571163,1767727849987,-191.195533,0.00037,31]
[400571164,1767727849996,-191.195532,0.00037,31]
[400571165,1767727850005,-151.0,0.00037,31]
[400571166,1767727850014,-151.0,0.00037,31]
[400571167,1767727850024,-151.0,0.00037,31]
[400571168,1767727850033,-151.0,0.00037,31]
[400571169,1767727850042,-151.0,0.00037,31]
[400571170,1767727850051,-151.0,0.00037,31]
[400571171,1767727850060,-158.565545,0.00037,31]
[400571172,1767727850069,-158.565545,0.00037,31]
[400571173,1767727850078,-158.565545,0.00037,31]
[400571174,1767727850088,-158.565554,0.00037,31]
[400571175,1767727850097,-1242.644525,0.00037,31]
[400571176,1767727850106,-1242.644525,0.00037,31]
[400571177,1767727850116,-1242.644525,0.00037,31]
[400571178,1767727850125,-1242.644525,0.00037,31]
[400571179,1767727850135,-175.863763,0.00037,31]
[400571180,1767727850145,-175.863763,0.00037,31]
[400571181,1767727850154,-175.863763,0.00037,31]
[400571182,1767727850163,-175.863767,0.00037,31]
[400571183,1767727850172,-68324.11,0.00037,2]
[400571184,1767727850182,-400.96412105,0.00037188,2]
[400571185,1767727850191,-2617.0,0.00037198,5]
[400571186,1767727850202,-900.0,0.0003726,5]
[400571187,1767727850211,-403.75,0.000373,14]
[400571188,1767727850220,-1266.0,0.00037336,2]
[400571189,1767727850231,-1200.0,0.00037336,2]
[400571190,1767727850240,-151.0,0.00037336,31]
[400571191,1767727850250,-151.0,0.00037336,31]
[400571192,1767727850259,-151.0,0.00037336,31]
[400571193,1767727850268,-694.996962,0.00037336,31]
[400571194,1767727850277,-694.996962,0.00037336,31]
[400571195,1767727850287,-151.0,0.00037336,31]
[400571196,1767727850296,-151.0,0.00037336,31]
[400571197,1767727850305,-694.996962,0.00037336,31]
[400571198,1767727850314,-151.0,0.00037336,31]
[400571199,1767727850324,-151.0,0.00037336,31]
[400571200,1767727850333,-151.0,0.00037336,31]
[400571201,1767727850343,-694.996972,0.00037336,31]
[400571202,1767727850352,-151.0,0.00037336,31]
[400571203,1767727850361,-151.0,0.00037336,31]
[400571204,1767727850371,-1447.589795,0.00037336,31]
[400571205,1767727850380,-1447.589795,0.00037336,31]
[400571206,1767727850389,-1447.589795,0.00037336,31]
[400571207,1767727850398,-1447.589793,0.00037336,31]
[400571208,1767727850407,-227.7122,0.00037336,31]
[400571209,1767727850417,-227.7122,0.00037336,31]
[400571210,1767727850426,-227.7122,0.00037336,31]
[400571211,1767727850435,-227.712199,0.00037336,31]
[400571212,1767727850444,-208.797506,0.00037336,31]
[400571213,1767727850453,-351.11,0.000374,14]
[400571214,1767727850463,-3466.0,0.00037665,2]
[400571215,1767727850473,-2435.0,0.00037665,2]
[400571216,1767727850487,-657.85,0.00037671,2]
[400571217,1767727850498,-361.22,0.00037671,2]
[400571218,1767727850508,-4006.44,0.000377,14]
[400571219,1767727850519,-70446.14347067,0.000379,30]
[400571220,1767727850528,-151.0,0.000379,7]
[400571221,1767727850537,-151.0,0.000379,7]
[400571222,1767727850546,-151.0,0.000379,31]
[400571223,1767727850557,-188.531788,0.000379,31]
[400571224,1767727850566,-188.531778,0.000379,31]
[400571225,1767727850576,-151.0,0.000379,31]
[400571226,1767727850585,-151.0,0.000379,31]
[400571227,1767727850594,-151.0,0.000379,31]
[400571228,1767727850603,-151.0,0.000379,31]
[400571229,1767727850612,-224.716118,0.000379,31]
[400571230,1767727850621,-224.716118,0.000379,31]
[400571231,1767727850630,-185.292937,0.000379,31]
[400571232,1767727850639,-224.716118,0.000379,31]
[400571233,1767727850648,-224.716117,0.000379,31]
[400571234,1767727850658,-151.3531,0.000379,31]
[400571235,1767727850667,-151.0,0.000379,31]
[400571236,1767727850676,-151.0,0.000379,31]
[400571237,1767727850686,-155.710092,0.000379,31]
[400571238,1767727850695,-155.710092,0.000379,31]
[400571239,1767727850704,-155.710092,0.000379,31]
[400571240,1767727850714,-155.710101,0.000379,31]
[400571241,1767727850723,-484.128599,0.000379,31]
[400571242,1767727850733,-484.128599,0.000379,31]
[400571243,1767727850742,-484.128599,0.000379,31]
[400571244,1767727850751,-178.196374,0.000379,31]
[400571245,1767727850761,-484.128607,0.000379,31]
[400571246,1767727850770,-158.0,0.00037973,30]
[400571247,1767727850780,-2468.0,0.00038,30]
[400571248,1767727850790,-2000.0,0.00038,30]
[400571249,1767727850800,-152.0,0.00038007,3]
[400571250,1767727850810,-1200.0,0.00038082,5]
[400571251,1767727850819,-464.52,0.0003814,2]
[400571252,1767727850828,-501.0,0.00038231,11]
[400571253,1767727850838,-209.97213037,0.00038248,2]
[400571254,1767727850848,-1000.0,0.00038356,5]
[400571255,1767727850857,-23867.78819424,0.000385,30]
[400571256,1767727850867,-992.86947112,0.00038767,5]
[400571257,1767727850877,-462.2012,0.00038888,30]
[400571258,1767727850886,-68324.11,0.000389,2]
[400571259,1767727850896,-1500.0,0.00038904,5]
[400571260,1767727850906,-300.0,0.00038999,10]
[400571261,1767727850915,-666.0,0.00038999,30]
[400571262,1767727850924,-300.0,0.00038999,10]
[400571263,1767727850934,-300.0,0.00038999,10]
[400571264,1767727850943,-300.0,0.00038999,10]
[400571265,1767727850952,-419.29818059,0.00039,10]
[400571266,1767727850961,-1713.54772393,0.00039,2]
[400571267,1767727850970,-265834.11284827,0.00039,120]
[400571268,1767727850979,-4849.33,0.00039,120]
[400571269,1767727850989,-21818.19393699,0.00039,120]
[400571270,1767727850998,-3000.0,0.00039,30]
[400571271,1767727851008,-3000.0,0.00039,30]
[400571272,1767727851017,-158.903179,0.00039,120]
[400571273,1767727851027,-158.903179,0.00039,120]
[400571274,1767727851036,-158.903179,0.00039,120]
[400571275,1767727851045,-158.903179,0.00039,120]
[400571276,1767727851055,-212.200798,0.00039,120]
[400571277,1767727851064,-212.200798,0.00039,120]
[400571278,1767727851073,-212.200798,0.00039,120]
[400571279,1767727851082,-212.200801,0.00039,120]
[400571280,1767727851092,-300.0,0.0003904,10]
[400571281,1767727851101,-666.0,0.0003904,30]
[400571282,1767727851110,-300.0,0.0003904,10]
[400571283,1767727851119,-308.46668356,0.0003904,10]
[400571284,1767727851128,-300.0,0.0003904,10]
[400571285,1767727851139,-300.0,0.00039087,10]
[400571286,1767727851148,-666.0,0.00039087,30]
[400571287,1767727851158,-1551.65362228,0.00039091,2]
[400571288,1767727851167,-1551.65362228,0.00039091,2]
[400571289,1767727851176,-1551.65362228,0.00039091,2]
[400571290,1767727851185,-1551.65362228,0.00039091,2]
[400571291,1767727851194,-1551.65362228,0.00039091,2]
[400571292,1767727851203,-1551.65362228,0.00039091,2]
[400571293,1767727851213,-1551.65362228,0.00039091,2]
[400571294,1767727851223,-1551.65362228,0.00039091,2]
[400571295,1767727851232,-1551.65362228,0.00039091,2]
[400571296,1767727851241,-1551.65362228,0.00039091,2]
[400571297,1767727851250,-1378.77,0.000391,30]
[400571298,1767727851260,-3073.6,0.0003916,2]
[400571299,1767727851269,-4006.44,0.000392,14]
[400571300,1767727851279,-2617.0,0.00039279,6]
[400571301,1767727851288,-300.0,0.00039299,10]
[400571302,1767727851298,-291.53331644,0.00039299,10]
[400571303,1767727851307,-403.75,0.000393,14]
[400571304,1767727851316,-150.0,0.00039559,2]
[400571305,1767727851326,-1306.08924953,0.00039726,5]
[400571306,1767727851336,-300.0,0.00039799,10]
[400571307,1767727851345,-158.0,0.00039871,90]
[400571308,1767727851355,-169.0,0.00039871,90]
[400571309,1767727851364,-300.0,0.00039899,10]
[400571310,1767727851374,-65484.23252267,0.000399,30]
[400571311,1767727851384,-501.0,0.00039901,13]
[400571312,1767727851394,-501.15,0.00039999,14]
[400571313,1767727851402,-250.0,0.0004,45]
[400571314,1767727851411,-250.0,0.0004,45]
[400571315,1767727851421,-300.32686327,0.0004,120]
[400571316,1767727851432,-151.16210505,0.0004,30]
[400571317,1767727851442,-919.53,0.0004,12]
[400571318,1767727851451,-4160.56684163,0.0004,30]
[400571319,1767727851460,-541.0,0.0004,120]
[400571320,1767727851470,-1043.44170185,0.0004,14]
[400571321,1767727851482,-2500.0,0.0004,7]
[400571322,1767727851492,-5000.0,0.0004,7]
[400571323,1767727851501,-250.0,0.0004,45]
[400571324,1767727851510,-152.0,0.0004,120]
[400571325,1767727851519,-152.0,0.0004,120]
[400571326,1767727851528,-160.0,0.0004,33]
[400571327,1767727851538,-160.0,0.0004,33]
[400571328,1767727851548,-160.0,0.0004,33]
[400571329,1767727851558,-160.0,0.0004,33]
[400571330,1767727851567,-231.2,0.0004,33]
[400571331,1767727851577,-3000.0,0.0004,5]
[400571332,1767727851586,-250.0,0.0004,45]
[400571333,1767727851595,-3000.0,0.0004,30]
[400571334,1767727851605,-3000.0,0.0004,30]
[400571335,1767727851614,-253.0,0.0004,30]
[400571336,1767727851623,-1378.77,0.0004,30]
[400571337,1767727851633,-7004.8462969,0.000402,4]
[400571338,1767727853195,-7301.2,0.000402,4]
[400571339,1767727853228,-67016.99429862,0.000402,4]
[400571340,1767727853267,-839.15,0.000402,4]
[400571341,1767727853279,-25145.57237245,0.000402,4]
[400571342,1767727853289,-400.96412105,0.0004026,2]
[400571343,1767727853300,-152.0,0.00040333,4]
[400571344,1767727853310,-1266.0,0.00040336,2]
[400571345,1767727853319,-263.28,0.00040375,120]
[400571346,1767727853329,-5081.3698465,0.00040398,15]
[400571347,1767727853360,-1866.07550372,0.00040398,15]
[400571348,1767727853373,-872.14,0.00040398,15]
[400571349,1767727853384,-8588.99205471,0.00040398,15]
[400571350,1767727853395,-8591.42259507,0.00040398,15]
[400571351,1767727853404,-160.0,0.000404,34]
[400571352,1767727853414,-25000.0,0.00040407,15]
[400571353,1767727853423,-25000.0,0.00040416,15]
[400571354,1767727853432,-25000.0,0.00040425,15]
[400571355,1767727853442,-25000.0,0.00040433,15]
[400571356,1767727853452,-25000.0,0.00040442,15]
[400571357,1767727853462,-25000.0,0.00040451,15]
[400571358,1767727853472,-18193.69594585,0.00040499,15]
[400571359,1767727853485,-351.11,0.000405,14]
[400571360,1767727853494,-250.0,0.000405,45]
[400571361,1767727853503,-320596.51408153,0.000405,120]
[400571362,1767727853513,-152.0,0.000406,120]
[400571363,1767727853525,-8732.20070403,0.0004062,7]
[400571364,1767727853536,-3466.0,0.00040665,2]
[400571365,1767727853545,-2433.0,0.00040665,2]
[400571366,1767727853556,-152.0,0.000407,120]
[400571367,1767727853565,-6156.0,0.000407,117]
[400571368,1767727853574,-152.31,0.00040716,120]
[400571369,1767727853584,-155.72,0.00040716,120]
[400571370,1767727853593,-152.31,0.00040816,120]
[400571371,1767727853603,-155.72,0.00040816,120]
[400571372,1767727853612,-1143.119,0.00040881,59]
[400571373,1767727853622,-152.31,0.00040916,120]
[400571374,1767727853631,-155.72,0.00040916,120]
[400571375,1767727853640,-1353.9,0.00040924,6]
[400571376,1767727853649,-7577.68298788,0.00040998,2]
[400571377,1767727853659,-5000.14253678,0.00041,12]
[400571378,1767727853668,-5123.27432191,0.00041,13]
[400571379,1767727853677,-199.0,0.00041,45]
[400571380,1767727853687,-164.0,0.00041,120]
[400571381,1767727853696,-600.0,0.00041,5]
[400571382,1767727853706,-1161.89680024,0.00041,30]
[400571383,1767727853715,-1851.32859183,0.00041,120]
[400571384,1767727853724,-187.89724212,0.00041,35]
[400571385,1767727853733,-1880.0439873,0.00041,120]
[400571386,1767727853743,-6000.0,0.00041,5]
[400571387,1767727853752,-253.0,0.00041,34]
[400571388,1767727853763,-1032.62372196,0.00041,30]
[400571389,1767727853772,-152.31,0.00041016,120]
[400571390,1767727853782,-155.72,0.00041016,120]
[400571391,1767727853792,-118206.94560466,0.00041059,2]
[400571392,1767727853801,-404.81,0.00041095,2]
[400571393,1767727853811,-500.0,0.00041095,2]
[400571394,1767727853820,-500.0,0.00041095,2]
[400571395,1767727853829,-361.44959845,0.00041095,2]
[400571396,1767727853843,-138.55040155,0.00041095,2]
[400571397,1767727853854,-500.0,0.00041095,2]
[400571398,1767727853863,-500.0,0.00041095,2]
[400571399,1767727853873,-500.0,0.00041095,2]
[400571400,1767727853882,-500.0,0.00041095,2]
[400571401,1767727853891,-500.0,0.00041095,2]
[400571402,1767727853901,-500.0,0.00041095,2]
[400571403,1767727853910,-500.0,0.00041095,2]
[400571404,1767727853920,-500.0,0.00041095,2]
[400571405,1767727853929,-596.53,0.00041095,2]
[400571406,1767727853940,-81.54459037,0.00041095,2]
[400571407,1767727856454,-151.0,0.0001712,2]
[400571408,1767727856463,-151.0,0.0001712,2]
[400571409,1767727856472,-4632.44167717,0.000179,2]
[400571410,1767727856484,-1405.0,0.00025665,2]
[400571411,1767727856493,-1405.0,0.00028665,2]
[400571412,1767727856502,-1405.0,0.00031665,2]
[400571413,1767727856512,-803.11636699,0.00034665,2]
[400571414,1767727856524,-601.88363301,0.00034665,2]
[400571415,1767727856533,-171.25,0.00036849,2]
[400571416,1767727856543,-1109.99645956,0.00037098,2]
[400571417,1767727856552,-1109.99645955,0.00038345,2]
[400571418,1767727856562,-869.99094863,0.00039593,2]
[400571419,1767727856573,-240.00551092,0.00039593,2]
[400571420,1767727856582,-144.07407097,0.00041095,2]
[400571421,1767727856593,-295.60870062,0.00041095,2]
[400571422,1767727856666,-1405.0,0.00037665,2]
[400571423,1767727856676,-75.30263804,0.00041095,2]
[400571424,1767727856684,-596.53,0.00041095,2]
[400571425,1767727856694,-596.53,0.00041095,2]
[400571426,1767727856703,-596.53,0.00041095,2]
[400571427,1767727856712,-596.53,0.00041095,2]
[400571428,1767727856721,-596.53,0.00041095,2]
[400571429,1767727856731,-142.13895995,0.00041095,2]
[400571430,1767727856798,-324.598953,0.00040665,2]
[400571431,1767727911746,500.0,0.00030952,120]
[400571432,1767727961605,171.0,9e-07,2]
[400571433,1767727967944,241.23,0.0003239,120]
[400571434,1767728033321,-202.07318805,0.0001659,2]
[400571435,1767728033347,-550.0,0.00016659,2]
[400571436,1767728033369,-1000.0,0.0001666,2]
[400571437,1767728033391,-1446.76421349,0.0001666,2]
[400571438,1767728037160,-250.0,0.0001666,2]
[400571439,1767728177113,-2782.93830919,0.00016657,2]
[400571440,1767728177146,-4263.13338162,0.00016657,2]
[400571441,1767728177664,-171.0,0.00016657,2]
[400571442,1767728177694,-300.0,0.00016657,2]
[400571443,1767728177722,-250.0,0.00016657,2]
[400571444,1767728177750,-195.0,0.00016658,2]
[400571445,1767728177778,-300.0,0.00016658,2]
[400571446,1767728177808,-1200.0,0.00016658,2]
[400571447,1767728177836,-255.0,0.00016658,2]
[400571448,1767728177866,-500.0,0.00016659,2]
[400571449,1767728177897,-421.84512551,0.00016659,2]
[400571450,1767728177927,-492.93238791,0.00016659,2]
[400571451,1767728177954,-600.23887742,0.00016659,2]
[400571452,1767728177984,-147.69805692,0.00016659,2]
[400571453,1767728178133,-332.58110448,0.00016659,2]
[400571454,1767728178165,-500.0,0.00016659,2]
[400571455,1767728178194,-500.0,0.00016659,2]
[400571456,1767728178228,-152.33976398,0.00016659,2]
[400571457,1767728178259,-500.0,0.00016659,2]
[400571458,1767728178289,-500.0,0.00016659,2]
[400571459,1767728178320,-191.77514009,0.00016659,2]
[400571460,1767728178353,-500.0,0.00016659,2]
[400571461,1767728178381,-1564.1848829,0.0001666,2]
[400571462,1767728178626,-518.2482171,0.0001666,2]
[400571463,1767728179037,-332.58110448,0.0001666,2]
[400571464,1767728179123,-518.2482171,0.0001666,2]
[400571465,1767728179141,-8963.5135658,0.0001666,2]
[400571466,1767728179164,-10000.01,0.0001666,2]
[400571467,1767728183307,-10000.01,0.0001666,2]
[400571468,1767728189039,-368.61111788,0.00016659,2]
[400571469,1767728189139,-9262.78776424,0.0001666,2]
[400571470,1767728189268,-10000.01,0.0001666,2]
[400571471,1767728189546,-10000.01,0.0001666,2]
[400571472,1767728189646,-10000.01,0.0001666,2]
[400571473,1767728232931,500.0,0.00030199,120]
[400571474,1767728291097,191.04,0.00014596,2]
[400571475,1767728314344,-202.82,0.00016557,2]
[400571476,1767728314374,-500.0,0.00016659,2]
[400571477,1767728314402,-219.70477539,0.00016659,2]
[400571478,1767728314431,-500.0,0.00016659,2]
[400571479,1767728314463,-500.0,0.00016659,2]
[400571480,1767728321970,500.0,0.00016659,2]
[400571481,1767728347570,500.0,0.00016659,2]
[400571482,1767728359596,3118.86,0.00016438,2]
[400571483,1767728414818,-5881.15,0.0001665,2]
[400571484,1767728415472,-4175.13,0.0001665,2]
[400571485,1767728415554,-1649.75,0.0001665,2]
[400571486,1767728419512,-10000.01,0.0001665,2]
[400571487,1767728425778,-1200.0,0.00016658,2]
[400571488,1767728425808,-300.0,0.00016658,2]
[400571489,1767728425841,-500.0,0.00016659,2]
[400571490,1767728425872,-500.0,0.00016659,2]
[400571491,1767728426403,-5000.01,0.00016659,2]
[400571492,1767728511940,-165.316,0.00016327,2]
[400571493,1767728511970,-1346.571,0.00016327,2]
[400571494,1767728511997,-2500.0,0.0001656,2]
[400571495,1767728512027,-300.0,0.00016658,2]
[400571496,1767728512059,-500.0,0.00016659,2]
[400571497,1767728512247,-376.236,0.00016659,2]
[400571498,1767728522307,-123.764,0.00016659,2]
[400571499,1767728522338,-1794.9848659,0.00016659,2]
[400571500,1767728522455,-6162.5122682,0.00016659,2]
[400571501,1767728663797,370.0,0.00032876,120]
[400571502,1767728793675,-2500.0,0.0001656,2]
[400571503,1767728793700,-11.17404708,0.00016658,2]
[400571504,1767728816296,-288.82595292,0.00016658,2]
[400571505,1767728816328,-1200.0,0.00016658,2]
[400571506,1767728816359,-300.0,0.00016658,2]
[400571507,1767728816397,-500.0,0.00016659,2]
[400571508,1767728816433,-500.0,0.00016659,2]
[400571509,1767728816471,-500.0,0.00016659,2]
[400571510,1767728816503,-500.0,0.00016659,2]
[400571511,1767728816540,-500.0,0.00016659,2]
[400571512,1767728816577,-500.0,0.00016659,2]
[400571513,1767728816877,-422.35809416,0.00016659,2]
[400571514,1767728827229,-300.0,0.00016658,2]
[400571515,1767728827261,-77.64190584,0.00016659,2]
[400571516,1767728827295,-500.0,0.00016659,2]
[400571517,1767728827330,-500.0,0.00016659,2]
[400571518,1767728827359,-500.0,0.00016659,2]
[400571519,1767728827388,-500.77062601,0.00016659,2]
[400571520,1767728827417,-500.0,0.00016659,2]
[400571521,1767728827446,-500.0,0.00016659,2]
[400571522,1767728827475,-500.0,0.00016659,2]
[400571523,1767728827504,-500.0,0.00016659,2]
[400571524,1767728827533,-500.0,0.00016659,2]
[400571525,1767728828171,-243.1849363,0.00016659,2]
[400571526,1767728843178,-151.0,0.0001665,2]
[400571527,1767728843206,-151.0,0.0001665,2]
[400571528,1767728843236,-151.0,0.0001665,2]
[400571529,1767728843265,-151.0,0.0001665,2]
[400571530,1767728843294,-151.0,0.0001665,2]
[400571531,1767728843324,-151.0,0.0001665,2]
[400571532,1767728843354,-151.0,0.0001665,2]
[400571533,1767728843382,-151.0,0.0001665,2]
[400571534,1767728843411,-151.0,0.0001665,2]
[400571535,1767728843439,-151.0,0.0001665,2]
[400571536,1767728843468,-151.0,0.0001665,2]
[400571537,1767728843496,-256.8150637,0.00016659,2]
[400571538,1767728843526,-334.29786669,0.00016659,2]
[400571539,1767728843924,-5495.78413922,0.00016659,2]
[400571541,1767728927484,7963.29778127,0.00032876,120]
[400571542,1767728950750,-627.4571,0.0001656,2]
[400571543,1767728950780,-600.0,0.00016605,2]
[400571544,1767728950813,-300.0,0.00016649,2]
[400571545,1767728951461,-6945.0958,0.0001665,2]
[400571546,1767728951523,-10000.01,0.0001665,2]
[400571547,1767728951678,-10000.01,0.0001665,2]
[400571548,1767728951729,-327.9626875,0.0001665,2]
[400571549,1767728951758,-250.0,0.00016654,2]
[400571550,1767728951794,-500.0,0.00016659,2]
[400571551,1767728951827,-500.0,0.00016659,2]
[400571552,1767728951857,-500.0,0.00016659,2]
[400571553,1767728951888,-500.0,0.00016659,2]
[400571554,1767728952084,-7039.94356975,0.00016659,2]
[400571555,1767728952094,-382.10374275,0.00016659,2]
[400571556,1767728952108,-117.89625725,0.00016659,2]
[400571557,1767728952118,-500.0,0.00016659,2]
[400571558,1767728952127,-500.0,0.00016659,2]
[400571559,1767728952136,-500.0,0.00016659,2]
[400571560,1767728952145,-500.0,0.00016659,2]
[400571561,1767728952155,-7882.11374275,0.0001666,2]
[400571562,1767728952186,-10000.01,0.0001666,2]
[400571563,1767728952267,-10000.01,0.0001666,2]
[400571564,1767728952281,-327.9626875,0.0001666,2]
[400571565,1767728952303,-250.0,0.00016659,2]
[400571566,1767728952337,-500.0,0.00016659,2]
[400571567,1767728952438,-250.0,0.00016659,2]
[400571568,1767728952447,-250.0,0.0001666,2]
[400571569,1767728952477,-500.0,0.0001666,2]
[400571570,1767728952510,-500.0,0.0001666,2]
[400571571,1767728952527,-4844.084625,0.0001666,2]
[400571572,1767728952669,-10000.01,0.0001666,2]
[400571573,1767728963570,-500.0,0.00016659,2]
[400571574,1767728963863,-9000.01,0.0001666,2]
[400571575,1767728964098,-10000.01,0.0001666,2]
[400571576,1767728964151,-10000.01,0.0001666,2]
[400571577,1767728964176,-10000.01,0.0001666,2]
[400571578,1767728964212,-10000.01,0.0001666,2]
[400571579,1767728964274,-10000.01,0.0001666,2]
[400571580,1767728964373,-10000.01,0.0001666,2]
[400571581,1767728964663,-10000.01,0.0001666,2]
[400571582,1767728964878,-10000.01,0.0001666,2]
[400571583,1767728987437,-503.63126331,0.000166,2]
[400571584,1767728987464,-500.0,0.00016659,2]
[400571585,1767728987490,-506.98336707,0.00016659,2]
[400571586,1767728987592,-6978.78073924,0.0001666,2]
[400571587,1767728987952,-10000.01,0.0001666,2]
[400571588,1767728988140,-500.0,0.00016659,2]
[400571589,1767728988210,-9500.01,0.0001666,2]
[400571590,1767728988336,-500.0,0.0001666,2]
[400571591,1767728988372,-9000.01,0.0001666,2]
[400571592,1767728988495,-10000.01,0.0001666,2]
[400571593,1767728988580,-10000.01,0.0001666,2]
[400571594,1767728988674,-10000.01,0.0001666,2]
[400571595,1767729000620,-10000.01,0.0001666,2]
[400571596,1767729000777,-10000.01,0.0001666,2]
[400571597,1767729001227,-10000.01,0.0001666,2]
[400571598,1767729001327,-1200.0,0.00016659,2]
[400571599,1767729001337,-8800.01,0.0001666,2]
[400571600,1767729001487,-300.0,0.00016659,2]
[400571601,1767729001612,-9700.01,0.0001666,2]
[400571602,1767729001669,-300.0,0.0001666,2]
[400571603,1767729001723,-9400.01,0.0001666,2]
[400571604,1767729001980,-10000.01,0.0001666,2]
[400571605,1767729007821,1560.983298,7.945e-05,2]
[400571606,1767729007854,4946.650091,7.945e-05,2]
[400571607,1767729015125,-10000.01,0.00016559,2]
[400571608,1767729015372,-10000.01,0.00016559,2]
[400571609,1767729025609,-166.66,0.0001627,2]
[400571610,1767729025666,-9666.69,0.00016559,2]
[400571611,1767729026154,-10000.01,0.00016559,2]
[400571612,1767729026243,-10000.01,0.00016559,2]
[400571613,1767729026363,-10000.01,0.00016559,2]
[400571614,1767729026439,-10000.01,0.00016559,2]
[400571615,1767729026610,-10000.01,0.00016559,2]
[400571616,1767729026706,-10000.01,0.00016559,2]
[400571617,1767729026727,-10000.01,0.00016559,2]
[400571618,1767729026775,-10000.01,0.00016559,2]
[400571625,1767729031686,-1651.67368486,0.00016559,2]
[400571626,1767729031763,-305.85181942,0.00016559,2]
[400571627,1767729031776,-300.0,0.00016559,2]
[400571628,1767729031787,-8960.0,0.00016559,2]
[400571629,1767729032101,-2602.86816267,0.00016559,2]
[400571630,1767729032113,-1377.93241419,0.00016559,2]
[400571631,1767729032124,-1060.92531021,0.00016559,2]
[400571632,1767729032137,-999.0,0.00016559,2]
[400571633,1767729032154,-4910.06818058,0.00016559,2]
[400571634,1767729032263,-6916.88431535,0.00016559,2]
[400571635,1767729032275,-646.95932909,0.00016559,2]
[400571636,1767729032287,-2519.10982703,0.00016559,2]
[400571639,1767729032299,-487.0242411,0.00016559,2]
[400571641,1767729032312,-2488.79487899,0.00016559,2]
[400571643,1767729032324,-665.86849656,0.00016559,2]
[400571645,1767729032341,-449.6702639,0.00016559,2]
[400571648,1767729032353,-4448.81383102,0.00016559,2]
[400571652,1767729032386,-1872.07752206,0.00016559,2]
[400571713,1767729038286,-558.38385669,0.00016559,2]
[400571714,1767729038303,-401.616215,0.00016559,2]
[400571715,1767729038433,-432.46183533,0.00016559,2]
[400571719,1767729038491,-846277.22581595,0.00016559,2]
[400571720,1767729038501,-166.66,0.00016613,2]
[400571722,1767729038512,-205.65100729,0.000167,2]
[400571724,1767729038522,-500.0,0.00016759,2]
[400571725,1767729038531,-500.0,0.00016759,2]
[400571727,1767729038541,-500.0,0.00016759,2]
[400571729,1767729038550,-500.0,0.00016759,2]
[400571731,1767729038560,-500.0,0.00016759,2]
[400571733,1767729038570,-500.0,0.00016759,2]
[400571734,1767729038579,-500.0,0.00016759,2]
[400571736,1767729038589,-500.0,0.00016759,2]
[400571738,1767729038599,-500.0,0.00016759,2]
[400571740,1767729038608,-500.0,0.00016759,2]
[400571742,1767729038617,-510.914429,0.00016759,2]
[400571743,1767729038628,-500.0,0.00016759,2]
[400571745,1767729038637,-500.0,0.00016759,2]
[400571747,1767729038646,-500.0,0.00016759,2]
[400571749,1767729038656,-500.0,0.00016759,2]